Cogmind - Beta 16 @@@ ROGUE MODE // 2025.12.31 @ 20:17:47 Player: Bity Result: Destroyed by H-66 Slayer with Gauss Rifle Performance ------------- Evolutions (4) 2000 Regions Visited (7) 1400 Robots Destroyed (44) 220 Value Destroyed (1109) 1109 Prototype IDs (12) 240 Alien Tech Used (0) 0 Bonus (955) 955 TOTAL SCORE: 5924 Bonus ------- Follower Combat Kills 155 Registered with UFD 300 Met Optimus in HQ 500 Cogmind --------- Core Integrity 0/850 Matter 280/300 Energy 91/280 System Corruption 2% Temperature Cool (0) Movement Core (150) Ox2 Location -6/Factory Parts ------- > --- POWER (2) -------- Cooled Ion Engine > --- PROPULSION (6) --- (None) > --- UTILITY (5) ------ Large Storage Unit Advanced Weight Redist. System > --- WEAPON (2) ------- (None) > --- INVENTORY (15) --- Deuterium Engine Scrap Suit Power Amplifier Improved Heat Sink Improved Heat Sink Improved Heat Sink Advanced Heat Sink Advanced Sensor Array Reaction Control System Beamcaster Remote Datajack Shock Maul Companion Sword Peak State ------------ > --- POWER ------------ Cooled Ion Engine Nuclear Core > --- PROPULSION ------- Improved Aluminum Leg Improved Aluminum Leg Improved Aluminum Leg Light Armored Exoskeleton Armored Wheel > --- UTILITY ---------- Improved Heat Sink Huge Storage Unit Advanced Weight Redist. System Experimental Signal Interpreter Improved Light Armor Plating > --- WEAPON ----------- Beamcaster Companion Sword > --- INVENTORY -------- Cooled Ion Engine Cooled Ion Engine Deuterium Engine Light Nuclear Core Scrap Suit Power Amplifier Improved Heat Sink Improved Heat Sink Advanced Heat Sink Large Storage Unit Advanced Sensor Array Experimental Sensor Array Improved Terrain Scanner Surveybot 17 Chip Hardened Light Armor Plating System Shield Recalibrator Remote Datajack Plasma Cutter CPS Tube Shock Maul DRS Beacon [Rating: 60] Favorites ----------- Power Nuclear Core Engine Ion Engine Power Core Nuclear Core Propulsion Improved Aluminum Leg Leg Improved Aluminum Leg Wheel Armored Wheel Utility Large Storage Unit Device Improved Heat Sink Storage Large Storage Unit Processor Experimental Signal Interpreter Hackware Improved System Shield Protection Hardened Light Armor Plating Weapon Beamcaster Energy Gun Beamcaster Ballistic Gun Light Assault Rifle Special Weapon Mining Laser Impact Weapon Shock Maul Slashing Weapon Companion Sword Build | -11 -10 -10 -9 -9 -9 -9 -6 ------- Run | Yrd Mat Min Mat Sto Rec Scr Fac Slots Evolved 8 | . . . 2 . . . 6 Power 1 | . . . . . . . 1 Propulsion 4 | . . . . . . . 4 Utility 3 | . . . 2 . . . 1 Weapon . | . . . . . . . . Parts Attached 42 | 1 4 8 11 5 . 4 9 Power 8 | . . 1 3 1 . . 3 Engine 5 | . . . 2 . . . 3 Core 3 | . . 1 1 1 . . . Reactor . | . . . . . . . . Propulsion 10 | . 1 3 1 2 . 1 2 Treads . | . . . . . . . . Leg 9 | . 1 3 1 2 . . 2 Wheel 1 | . . . . . . 1 . Hover . | . . . . . . . . Flight . | . . . . . . . . Utility 15 | 1 1 1 5 1 . 3 3 Device 7 | 1 . . 5 . . 1 . Storage 2 | . 1 . . . . 1 . Processor 3 | . . 1 . . . 1 1 Hackware 1 | . . . . . . . 1 Protection 2 | . . . . 1 . . 1 Artifact . | . . . . . . . . Weapon 9 | . 2 3 2 1 . . 1 Energy Gun 2 | . . 1 1 . . . . Energy Cannon . | . . . . . . . . Ballistic Gun 3 | . 1 2 . . . . . Ballistic Cannon . | . . . . . . . . Launcher . | . . . . . . . . Special Weapon 1 | . 1 . . . . . . Impact Weapon 1 | . . . . 1 . . . Slashing Weapon 2 | . . . 1 . . . 1 Piercing Weapon . | . . . . . . . . Special Melee Weapon . | . . . . . . . . Unidentified Prototypes 4 | . . . 2 1 . . 1 Parts Lost 15 | . . . . 2 . . 13 Power 3 | . . . . . . . 3 Propulsion 6 | . . . . 1 . . 5 Utility 5 | . . . . 1 . . 4 Weapon 1 | . . . . . . . 1 Highest Loss Streak 10 | . . . . 2 . . 10 To Critical Strikes . | . . . . . . . . Average Backups 14 | 7 13 15 14 14 14 15 18 Power 3 | 1 1 2 3 4 4 3 2 Propulsion 4 | 4 8 8 5 3 3 2 . Utility 4 | . 1 2 3 3 4 6 10 Weapon 1 | 1 2 2 1 1 2 1 2 Tool/Special . | . . . . . . . . Unused Backups 43 | 6 3 2 12 1 . 4 15 Power 9 | 1 1 . 5 . . . 2 Propulsion 13 | 2 2 1 6 1 . 1 . Utility 14 | 1 . . 1 . . 2 10 Weapon 3 | 2 . 1 . . . . . Tool/Special 4 | . . . . . . 1 3 Average Slot Usage (%) 95 | . 100 100 99 87 88 98 85 Engine 3 | . 14 2 6 . . . 5 Core 7 | . . 11 4 11 11 11 5 Leg 22 | . 28 28 22 21 22 18 22 Wheel 1 | . . . . . . 3 5 Device 20 | . 14 7 28 25 22 22 12 Storage 11 | . 14 14 11 11 11 11 6 Processor 2 | . . 6 4 . . 2 5 Protection 4 | . . . . 7 11 8 . Energy Gun 13 | . . 2 21 12 11 20 10 Ballistic Gun 5 | . 20 25 . . . . . Special Weapon 1 | . 7 . . . . . . Peak Build Rating 60 | 7 8 17 28 32 24 37 60 Average Rating 24 | 6 7 11 25 24 24 29 53 On Entrance 18 | 6 7 8 17 27 24 24 37 Avg Prop Armor Cover (%) 10 | . . . . . . 8 15 Naked Turns . | . . . . . . . . Heaviest Build 105 | 13 28 31 39 38 38 101 105 Greatest Support 78 | 20 20 25 34 34 32 35 78 Greatest Overweight (x) 4 | . 1 1 1 1 1 4 4 Average Overweight (x) 1 | . . 1 1 . 1 1 2 Largest Inventory Capacity 25 | 8 15 15 15 15 15 25 25 Average Capacity 16 | 8 14 15 15 15 15 17 24 Most Carried 25 | 8 15 15 15 15 15 20 25 Average Carried 15 | 7 13 14 14 14 14 16 20 Final Capacity 25 | 8 15 15 15 15 15 25 15 Final Carried 20 | 8 15 15 15 14 15 20 14 Class Distribution -------------------- 85% | Mutant 14% | Scavenger-Mutant Dominant Class ---------------- Mutant | -10/Materials Scavenger-Mutant | -10/Mines Mutant | -9/Materials Mutant | -9/Storage Mutant | -9/Recycling Mutant | -9/Scraptown Mutant | -6/Factory Resources | -11 -10 -10 -9 -9 -9 -9 -6 ----------- Run | Yrd Mat Min Mat Sto Rec Scr Fac Matter Collected 919 | 280 100 123 141 81 19 20 155 Remotely . | . . . . . . . . Salvage Created 1643 | 191 296 136 488 125 . . 407 Parts 96 | 13 13 8 26 7 . . 29 Haulers Intercepted 4 | . 2 . 2 . . . . Recyclers Shooed . | . . . . . . . . Parts Field Recycled . | . . . . . . . . Retrieved Matter . | . . . . . . . . Parts Self-Destructed . | . . . . . . . . Prevented . | . . . . . . . . Parts Restored . | . . . . . . . . Kills | -11 -10 -10 -9 -9 -9 -9 -6 ------- Run | Yrd Mat Min Mat Sto Rec Scr Fac Combat Hostiles Destroyed 25 | . 4 5 7 2 . . 7 Melee 2 | . . . . . . . 2 Guns 21 | . 4 5 7 2 . . 3 Classes Destroyed 10 | 3 3 1 1 1 . . 1 Worker 3 | 2 . . 1 . . . . Builder 2 | . . . . 1 . . 1 Tunneler 5 | 5 . . . . . . . Hauler 4 | . 2 . 2 . . . . Recycler 2 | 1 . . 1 . . . . Watcher 3 | . 1 . 2 . . . . Swarmer 6 | . . 3 1 . . . 2 Grunt 8 | . 4 2 2 . . . . Sentry 10 | . . . 4 2 . . 4 Specialist 1 | . . . . . . . 1 Best Kill Streak 4 | 3 2 3 4 2 . . 2 Combat Bots Only 3 | . 2 3 1 2 . . 2 Max Kills in Single Turn 2 | 1 2 1 2 1 . . 2 Gunslinging 1 | . 1 . . . . . 1 Exploded . | . . . . . . . . Melee 1 | . . . . . . . 1 Uniques/NPCs Destroyed . | . . . . . . . . Combat | -11 -10 -10 -9 -9 -9 -9 -6 -------- Run | Yrd Mat Min Mat Sto Rec Scr Fac Hostile Shots Fired 404 | . 27 29 41 16 . . 291 Missed 115 | . 6 4 13 3 . . 89 Hits 289 | . 21 25 28 13 . . 202 Melee 1 | . . . . . . . 1 Projectile 288 | . 21 25 28 13 . . 201 Critical Strikes 5 | . 2 . 1 . . . 2 Damage Taken 3983 | . 253 251 402 186 . . 2891 Core 1045 | . 64 41 38 42 . . 860 Absorbed by Shields . | . . . . . . . . Regen/Repaired (Parts) 110 | . . . 31 . . . 79 Core Remaining (%) 79 | 100 . 58 . . . 80 . Volleys Fired 148 | 35 40 14 33 11 . . 15 Largest 2 | 2 2 2 2 2 . . 2 Hottest 131 | 40 120 40 131 131 . . 131 Shots Fired 289 | 70 77 28 66 18 . . 30 Gun 287 | 70 75 28 66 18 . . 30 Cannon . | . . . . . . . . Launcher . | . . . . . . . . Special 2 | . 2 . . . . . . Kinetic 174 | 70 75 28 1 . . . . Thermal 115 | . 2 . 65 18 . . 30 Explosive . | . . . . . . . . Electromagnetic . | . . . . . . . . Robot Hit Streak 16 | 5 8 7 9 14 . . 16 Robot Miss Streak 3 | 3 3 2 2 1 . . 2 Penetration Max . | . . . . . . . . Secondary Targets 3 | . 1 1 . . . . 1 Max Gunslinging Chain 1 | . 1 1 . . . . 1 Shots Hit Robots 213 | 44 50 20 48 15 . . 36 Core Hits 73 | 13 16 11 16 4 . . 13 Critical Kills 2 | 2 . . . . . . . Critical Parts Destroyed 1 | 1 . . . . . . . Critical Strikes 8 | 3 . . 3 . . . 2 Burn 5 | . . . 3 . . . 2 Destroy 3 | 3 . . . . . . . Melee Attacks 19 | . . . 5 1 . . 13 Impact . | . . . . . . . . Slashing 19 | . . . 5 1 . . 13 Piercing . | . . . . . . . . Sneak Attacks 1 | . . . . . . . 1 Combat Hostiles . | . . . . . . . . Follow-up Attacks . | . . . . . . . . Damage Inflicted 2995 | 350 407 158 900 265 . . 915 Guns 2522 | 350 407 158 900 265 . . 442 Cannons . | . . . . . . . . Explosions . | . . . . . . . . Melee 473 | . . . . . . . 473 Ramming . | . . . . . . . . Kinetic 924 | 350 407 158 9 . . . . Thermal 1598 | . . . 891 265 . . 442 Explosive . | . . . . . . . . Electromagnetic . | . . . . . . . . Impact . | . . . . . . . . Slashing 473 | . . . . . . . 473 Piercing . | . . . . . . . . Highest Corruption 2 | . . . . . . . 2 Average Corruption 1 | . . . . . . . 1 Corruption Purged . | . . . . . . . . Corruption Blocked . | . . . . . . . . Effects 1 | . . . . . . . 1 Message Errors 1 | . . . . . . . 1 Overload Shots . | . . . . . . . . Overflow Damage 34 | . . . . . . . 34 Projectiles . | . . . . . . . . Explosions . | . . . . . . . . Melee 34 | . . . . . . . 34 Knockbacks . | . . . . . . . . Impact . | . . . . . . . . Kinetic . | . . . . . . . . Secondary . | . . . . . . . . Self-Inflicted Damage . | . . . . . . . . Shots . | . . . . . . . . Rammed . | . . . . . . . . Targets Rammed . | . . . . . . . . Kicked . | . . . . . . . . Crushed . | . . . . . . . . Highest Temperature 318 | . 60 19 138 318 . . 90 Average Temperature 49 | . 17 9 42 136 . . 36 Received Heat Transfer 777 | . 177 75 177 54 . . 294 Siege Activations . | . . . . . . . . Martial Activations . | . . . . . . . . Shielding Activations . | . . . . . . . . Robots Disrupted . | . . . . . . . . Combat Hostiles . | . . . . . . . . Robots Corrupted . | . . . . . . . . Combat Hostiles . | . . . . . . . . Parts Fried . | . . . . . . . . Impact Corruptions . | . . . . . . . . Robots Melted 2 | . . . . . . . 2 Combat Hostiles 2 | . . . . . . . 2 Parts Melted 14 | . . . 7 4 . . 3 Heat Transferred 3700 | . . . 2072 555 . . 1073 Parts Sabotaged 3 | . . . . . . . 3 Parts Stolen . | . . . . . . . . Parts Stripped . | . . . . . . . . Power Chain Reactions . | . . . . . . . . Alert | -11 -10 -10 -9 -9 -9 -9 -6 ------- Run | Yrd Mat Min Mat Sto Rec Scr Fac Maximum Alert Level . | . . . . . . . . Low Security (%) 100 | 100 100 100 100 100 100 . 100 Level 1 . | . . . . . . . . Level 2 . | . . . . . . . . Level 3 . | . . . . . . . . Level 4 . | . . . . . . . . Level 5 . | . . . . . . . . High Security . | . . . . . . . . Max Security . | . . . . . . . . Peak Influence 130 | 5 45 70 130 40 12 . 80 Initial 14 | . . . . 14 1 . . Average 19 | 1 7 13 53 8 . . 26 Influence Increases 1265 | 40 182 131 451 109 30 . 322 Destroy 0b10 Robot/C 640 | . 80 100 280 40 . . 140 Destroy 0b10 Robot/NC 95 | 40 15 . 30 5 . . 5 Destroy Leader 214 | . 16 20 108 20 . . 50 Allied During Kill 23 | . . . 23 . . . . Successful Hack 169 | . 26 11 6 14 30 . 82 Disable Machine 45 | . 15 . . 30 . . . Destroy Structure 4 | . . . 4 . . . . Lose Combat Pursuer 75 | . 30 . . . . . 45 Influence Decreases 1265 | 40 182 131 415 140 35 . 322 Entered New Map 26 | . . . . 22 4 . . Time Decay 1069 | 40 182 131 371 84 31 . 230 Lost Part 102 | . . . . 10 . . 92 Lost Ally 44 | . . . 44 . . . . Purge Threat 24 | . . . . 24 . . . Squads Dispatched 3 | . . . 2 . . . 1 Investigation . | . . . . . . . . Extermination 1 | . . . . . . . 1 Reinforcement 2 | . . . 2 . . . . Assault . | . . . . . . . . Garrison . | . . . . . . . . Intercept . | . . . . . . . . Searches Triggered . | . . . . . . . . Construction Impeded . | . . . . . . . . Haulers Reinforced . | . . . . . . . . Active Scanning Responses . | . . . . . . . . Cargo Convoy Interrupts 1 | . . . . . . . 1 Stealth | -11 -10 -10 -9 -9 -9 -9 -6 --------- Run | Yrd Mat Min Mat Sto Rec Scr Fac Distress Signals 2 | . 1 . 1 . . . . Communications Jammed . | . . . . . . . . Distress Signals . | . . . . . . . . Times Spotted 56 | . 7 5 14 3 . . 27 Peak Tracking Total 13 | . 3 3 2 2 . . 13 Tactical Retreats 4 | . 2 . . . . . 2 Traps | -11 -10 -10 -9 -9 -9 -9 -6 ------- Run | Yrd Mat Min Mat Sto Rec Scr Fac Traps Triggered 1 | . . . . 1 . . . Indirectly . | . . . . . . . . Trap Hack Attempts . | . . . . . . . . Triggered . | . . . . . . . . Disarmed . | . . . . . . . . Reprogrammed . | . . . . . . . . Reused . | . . . . . . . . Traps Extracted . | . . . . . . . . Installed . | . . . . . . . . Triggered . | . . . . . . . . Machines | -11 -10 -10 -9 -9 -9 -9 -6 ---------- Run | Yrd Mat Min Mat Sto Rec Scr Fac Machines Disabled 3 | . 1 . . 2 . . . Max in Single Turn 1 | . 1 . . 1 . . . Machines Repaired . | . . . . . . . . Machines Dismantled . | . . . . . . . . Machines Sabotaged . | . . . . . . . . Overloaded Fab Kills . | . . . . . . . . Hacking | -11 -10 -10 -9 -9 -9 -9 -6 --------- Run | Yrd Mat Min Mat Sto Rec Scr Fac Machines Accessed 41 | . 8 1 5 2 9 12 4 Terminals 20 | . 7 1 2 2 5 . 3 Fabricators . | . . . . . . . . Repair Stations 2 | . . . 1 . . . 1 Recycling Units 5 | . 1 . . . 4 . . Scanalyzers 2 | . . . 2 . . . . Garrison Access . | . . . . . . . . Total Hacks 179 | . 23 5 16 3 27 85 20 Successful 137 | . 9 3 12 3 14 85 11 Failed 41 | . 14 2 3 . 13 . 9 Catastrophic 2 | . . . 1 . 1 . . Database Lockouts 1 | . . . 1 . . . . Manual 50 | . 17 4 2 2 20 . 5 Terminals 72 | . 22 5 3 3 23 . 16 Fabricators . | . . . . . . . . Repair Stations 7 | . . . 3 . . . 4 Recycling Units 5 | . 1 . . . 4 . . Scanalyzers 10 | . . . 10 . . . . Garrison Access . | . . . . . . . . Terminal Hacks 104 | . 5 2 1 2 5 85 4 Record 85 | . . . . . . 84 1 Robot Analysis 1 | . . . . . . . 1 Prototype ID Bank 1 | . . . . . . . 1 Open Door 2 | . . . . 1 . 1 . Terminal Index 3 | . 1 1 . . 1 . . Alert Level 2 | . . 1 . . 1 . . Unreport Threat 2 | . 1 . . 1 . . . Dispatch Records 1 | . . . . . 1 . . Transport Status 1 | . 1 . . . . . . Zone Layout 6 | . 2 . 1 . 2 . 1 Fabricator Hacks . | . . . . . . . . Repair Station Hacks 6 | . . . 2 . . . 4 Scan Component 3 | . . . 1 . . . 2 Repair 3 | . . . 1 . . . 2 Recycling Unit Hacks 5 | . 1 . . . 4 . . Report Inventory 5 | . 1 . . . 4 . . Scanalyzer 9 | . . . 9 . . . . Insert Component 3 | . . . 3 . . . . Analyze 5 | . . . 5 . . . . Retrieve Study 1 | . . . 1 . . . . Garrison Access Hacks . | . . . . . . . . Unauthorized Hacks 13 | . 3 1 . 1 5 . 3 Terminals 13 | . 3 1 . 1 5 . 3 Botnet 13 | . 3 1 . 1 5 . 3 Fabricators . | . . . . . . . . Repair Stations . | . . . . . . . . Recycling Units . | . . . . . . . . Scanalyzers . | . . . . . . . . Garrison Access . | . . . . . . . . Data Cores Recovered . | . . . . . . . . Used . | . . . . . . . . Hacking Detections 26 | . 8 1 4 1 8 . 4 Full Trace Events 2 | . . 1 1 . . . . Feedback Events . | . . . . . . . . Feedback Blocked . | . . . . . . . . Robot Schematics Acquired . | . . . . . . . . Robots Built . | . . . . . . . . Authchips . | . . . . . . . . Time . | . . . . . . . . Total Robot Build Rating . | . . . . . . . . Part Schematics Acquired 2 | . . . 2 . . . . Parts Built . | . . . . . . . . Authchips . | . . . . . . . . Time . | . . . . . . . . Total Part Build Rating . | . . . . . . . . Part Studies Acquired 1 | . . . 1 . . . . Parts Repaired 3 | . . . 1 . . . 2 Time 96 | . . . 26 . . . 70 Parts Recycled . | . . . . . . . . Recycled Matter . | . . . . . . . . Retrieved Matter . | . . . . . . . . Retrieved Components . | . . . . . . . . Parts Scanalyzed 3 | . . . 3 . . . . Part Schematics Acquired 2 | . . . 2 . . . . Parts Damaged . | . . . . . . . . Bothacking | -11 -10 -10 -9 -9 -9 -9 -6 ------------ Run | Yrd Mat Min Mat Sto Rec Scr Fac Used RIF Installer . | . . . . . . . . Robots Hacked . | . . . . . . . . Non-combat . | . . . . . . . . Combat . | . . . . . . . . Robot Hacks Applied . | . . . . . . . . Relay Couplers Released . | . . . . . . . . Fabnet Peak Effective % . | . . . . . . . . Robots Rewired . | . . . . . . . . Allies Hacked . | . . . . . . . . Hacks Repelled . | . . . . . . . . Allies | -11 -10 -10 -9 -9 -9 -9 -6 -------- Run | Yrd Mat Min Mat Sto Rec Scr Fac Total Allies 3 | . . 3 . . . . . Largest Group 3 | . . 3 3 . . . . Highest-Rated Group 40 | . . 40 40 . . . . Highest-Rated Ally 16 | . . 16 16 . . . . Total Orders . | . . . . . . . . Ally Attacks 30 | . . . 30 . . . . Total Damage 345 | . . . 345 . . . . Kills 7 | . . . 7 . . . . Allies Corrupted . | . . . . . . . . Allies Melted . | . . . . . . . . Intel | -11 -10 -10 -9 -9 -9 -9 -6 ------- Run | Yrd Mat Min Mat Sto Rec Scr Fac Active Infowar (turns) 2448 | 28 1013 362 908 128 . . 9 Sensors 1045 | . . . 908 128 . . 9 Seismic 1403 | 28 1013 362 . . . . . Robot Analysis Total 1 | . . . . . . . 1 Derelict Logs Recovered 1 | . . 1 . . . . . Drone Launches . | . . . . . . . . Drone Recoveries . | . . . . . . . . Exploration | -11 -10 -10 -9 -9 -9 -9 -6 ------------- Run | Yrd Mat Min Mat Sto Rec Scr Fac Turns Passed 7823 | 236 1013 710 1406 378 1362 2036 682 Spaces Moved 3865 | 106 454 318 586 180 706 1224 291 Core 14 | . . . . . . . 14 Treads . | . . . . . . . . Legs 3154 | 106 454 318 586 180 706 703 101 Wheels 697 | . . . . . . 521 176 Hover . | . . . . . . . . Flight . | . . . . . . . . Fastest Speed 95 | 120 120 190 190 120 190 95 100 Average Speed 175 | 120 178 190 190 161 190 164 161 Slowest Speed 205 | 120 190 190 190 190 190 190 205 Overloaded Moves . | . . . . . . . . Propulsion Burnouts . | . . . . . . . . Robots Hopped . | . . . . . . . . Potential Cave-ins . | . . . . . . . . Cave-ins Triggered . | . . . . . . . . Exploration Rate (%) 48 | 6 60 64 43 23 98 83 8 Regions Visited 7 Branch Regions 4 Pre-discovered Areas 4 | . . . . . . 4 . Known Exits Taken 2 | . . 1 . . . 1 . Unknown Exits Taken 5 | 1 1 . 1 1 1 . . Scrap Searched 4 | . . 1 . . . 3 . Spaces Dug 2 | . . . 2 . . . . Terrain Destroyed 2 | . . . 2 . . . . Melee 2 | . . . 2 . . . . Projectile . | . . . . . . . . AOE . | . . . . . . . . Terrain Rammed . | . . . . . . . . Walls Destroyed . | . . . . . . . . Machines Disabled . | . . . . . . . . Actions | -11 -10 -10 -9 -9 -9 -9 -6 --------- Run | Yrd Mat Min Mat Sto Rec Scr Fac Total 4663 | 158 594 405 823 249 727 1255 452 Wait 472 | 15 83 53 149 37 21 11 103 Move 3858 | 105 453 317 585 179 705 1223 291 Hop . | . . . . . . . . Pick Up 57 | 2 9 4 18 2 1 10 11 Fast Attach 9 | 1 . . . 4 . . 4 Attach 18 | . . . 2 4 . 1 11 Detach 6 | . . . . 4 . . 2 Swap 32 | . 4 8 12 3 . 4 1 Drop 44 | . 5 9 19 4 . 6 1 Fire 148 | 35 40 14 33 11 . . 15 Melee 19 | . . . 5 1 . . 13 Ram . | . . . . . . . . Kick . | . . . . . . . . Crush . | . . . . . . . . Escape Stasis . | . . . . . . . . Rewire . | . . . . . . . . Trap . | . . . . . . . . Miscellaneous . | . . . . . . . . Route ------- -11/Scrapyard -10/Materials (discovered 3 exits: *Mat x2 / *Min) -10/Mines (discovered 2 exits: *Mat x2) -9/Materials (discovered 3 exits: *Mat x2 / *Sto) -9/Storage -9/Recycling (discovered 2 exits: [*Fac] / *Scr) -9/Scraptown (discovered 2 exits: *Fac x2) -6/Factory (discovered 5 exits: Fac x3 / *Low / Ext) History --------- Turn | Location | Event 1 | -11/Scrapyard | Discovered new exit (range 3) 237 | -11/Scrapyard | Entered Materials 301 | -10/Materials | Build established: Mutant 507 | -10/Materials | Discovered new exit (range 9) 1053 | -10/Materials | Discovered new exit (range 11) 1117 | -10/Materials | Discovered new exit (range 10) 1250 | -10/Materials | Entered Mines 1266 | -10/Mines | Met a Derelict bent on vengeance 1414 | -10/Mines | Assembled infested the area 1587 | -10/Mines | Discovered new exit (range 5) 1616 | -10/Mines | Identified exit to Materials 1637 | -10/Mines | Discovered exit to Materials (range 9) 1660 | -10/Mines | Assisted by bots powering up and referring to "LRC-V3" 1671 | -10/Mines | Build established: Scavenger-Mutant 1726 | -10/Mines | Found a damaged Exp. Sensor Array with a note attached 1730 | -10/Mines | Found Prototype Device 1760 | -10/Mines | Learned location of 1 exit from Materials 1960 | -10/Mines | Entered Materials 1960 | -9/Materials | Accompanied by 3 allies 1960 | -9/Materials | Evolved 2 slots: Utility x2 1961 | -9/Materials | Identified exit to Materials 1961 | -9/Materials | Identified Exp. Sensor Array 2214 | -9/Materials | Repaired Mining Claw 2785 | -9/Materials | Build established: Mutant 2838 | -9/Materials | Discovered new exit (range 16) 3100 | -9/Materials | Central database locked down 3218 | -9/Materials | Discovered exit to Materials (range 8) 3366 | -9/Materials | Entered Storage 3727 | -9/Storage | Used back door to open Recycling access 3727 | -9/Storage | Discovered new exit (range 4) 3744 | -9/Storage | Entered Recycling 3745 | -9/Recycling | Met a Zionite searching for Scraptown 4553 | -9/Recycling | Discovered new exit (range 16) 5060 | -9/Recycling | Scanned before Scraplab entrance 5087 | -9/Recycling | Entered Scraplab 5102 | -9/Recycling | Discovered new exit (range 3) 5106 | -9/Recycling | Entered Scraptown 5549 | -9/Scraptown | Visited Shadow of the Wyrm 5589 | -9/Scraptown | Visited IN-MT5's Study 5654 | -9/Scraptown | Visited UFD Registry 5654 | -9/Scraptown | Registered with UFD as "Flexiplate" 5713 | -9/Scraptown | Visited Cyclists 5728 | -9/Scraptown | Entered Cyclist Reading Room 5779 | -9/Scraptown | Visited Symbiants 5824 | -9/Scraptown | Visited Cave Peace 6228 | -9/Scraptown | Visited CPS Storage 6304 | -9/Scraptown | Visited Sword Containment 6335 | -9/Scraptown | Visited Science Guys 6371 | -9/Scraptown | Visited Abandonware Association 6390 | -9/Scraptown | Learned abandonware demo "HACKBUD.EXE" 6390 | -9/Scraptown | Learned abandonware demo "ERRANTS.EXE" 6435 | -9/Scraptown | Visited Cartography Club 6472 | -9/Scraptown | Found Surveybot 17 Chip 6527 | -9/Scraptown | Learned location of Extension (-6) 6527 | -9/Scraptown | Learned location of Testing (-2) 6527 | -9/Scraptown | Learned location of Quarantine (-3) 6527 | -9/Scraptown | Learned 8 Materials zone layouts 6527 | -9/Scraptown | Learned 12 Materials zone layouts 6527 | -9/Scraptown | Learned 24 Factory zone layouts 6527 | -9/Scraptown | Learned 8 Research zone layouts 6527 | -9/Scraptown | Learned 16 Research zone layouts 6527 | -9/Scraptown | Learned 8 Lower Caves zone layouts 6527 | -9/Scraptown | Learned 16 Lower Caves zone layouts 6527 | -9/Scraptown | Learned 12 Upper Caves zone layouts 6527 | -9/Scraptown | Learned 20 Proximity Caves zone layouts 6527 | -9/Scraptown | Learned location of 1 exit from Upper Caves 6527 | -9/Scraptown | Learned location of 2 exits from Proximity Caves 6527 | -9/Scraptown | Identified exit to Factory 6550 | -9/Scraptown | Visited Infowarlord's Domain 6561 | -9/Scraptown | Found Exp. Signal Interpreter 6577 | -9/Scraptown | Visited Scrap Suit Storage 6584 | -9/Scraptown | Found Scrap Suit 6631 | -9/Scraptown | Visited Derelict Rescue Squad 6642 | -9/Scraptown | Found DRS Beacon 6666 | -9/Scraptown | Visited LU-1G1's Boring Crew 6720 | -9/Scraptown | Visited Science Testing Area 6742 | -9/Scraptown | Visited Chapter 10 6806 | -9/Scraptown | Found Prototype Slashing Weapon 7044 | -9/Scraptown | Met Optimus 7044 | -9/Scraptown | Accepted into 0bPrime 7142 | -9/Scraptown | Entered Factory 7142 | -6/Factory | Evolved 6 slots: Power x1, Propulsion x4, Utility x1 7143 | -6/Factory | Identified exit to Factory 7144 | -6/Factory | Identified exit to Extension 7288 | -6/Factory | Discovered new exit (range 10) 7305 | -6/Factory | Identified exit to Lower Caves 7474 | -6/Factory | Repaired Adv. Weight Redist. System 7522 | -6/Factory | Repaired Imp. Aluminum Leg 7697 | -6/Factory | Identified Companion Sword 7733 | -6/Factory | Lost 3 parts (1n1u1w) 7775 | -6/Factory | Cargo convoy interrupted 7801 | -6/Factory | Core integrity fell below 50% 7807 | -6/Factory | Core integrity fell below 20% 7824 | -6/Factory | Destroyed by H-66 Slayer with Gauss Rifle Last Messages --------------- 07809_ Surveybot 17 Chip blown off. 07809_ E-15 Imp destroyed. 07809_ P-60 Hacker resets H-66 Slayer, system corruption cleaned. 07809_ Acquired Adv. Weight Redist. System. 07810_ P-60 Hacker resets H-66 Slayer, system corruption cleaned. 07811_ R-10 Processor collects Recalibrator. 07811_ R-10 Processor collects Imp. Arc Projector. 07812_ K-01 Serf collects debris. 07813_ P-60 Hacker resets I-36 Angel, system corruption cleaned. 07813_ P-60 Hacker resets P-60 Hacker, system corruption cleaned. 07813_ Penetrated by Slug. 07815_ K-01 Serf collects debris. 07817_ Penetrated by Slug. 07819_ SF 83QU4&JRUFYL